bitfinex/quotes_ETHUSD_20251224
["timestamp","ask_amount","ask_price","bid_price","bid_amount"]
[1766586748283,0.03419621,2927.3,2926.3,0.9335]
[1766586748486,0.001,2927.8,2926.5,0.9335]
[1766586748780,0.001,2927.8,2926.7,0.9335]
[1766586748781,0.03519621,2927.8,2926.7,0.9335]
[1766586748987,0.03519621,2927.8,2926.4,0.99277552]
[1766586748988,0.001,2927.8,2926.9,0.9335]
[1766586749183,0.001,2929.0,2927.1,0.9335]
[1766586749184,6.908405,2928.8,2927.1,0.9335]
[1766586749392,2.505858,2928.6,2927.3,0.9335]
[1766586749557,0.03419621,2928.5,2927.5,0.9335]
[1766586749752,30.0,2928.7,2927.6,0.03415767]
[1766586749958,3.44867056,2928.8,2927.6,0.03415767]
[1766586749959,26.803894,2928.5,2927.6,0.03415767]
[1766586750180,0.03419621,2928.4,2927.6,0.03415767]
[1766586750365,4.818005,2928.5,2927.6,0.96765767]
[1766586750575,4.818005,2928.5,2926.6,0.09877552]
[1766586750576,13.09655,2928.3,2927.3,0.894]
[1766586750780,24.701574,2928.1,2927.3,0.894]
[1766586752086,3.578268,2928.7,2927.5,0.93485883]
[1766586752392,8.535255,2928.5,2927.5,0.9007]
[1766586752596,20.877504,2928.3,2926.9,4.31726704]
[1766586752900,13.93062,2928.1,2927.0,0.03416467]
[1766586753059,3.026218,2927.9,2927.0,0.03416467]
[1766586753259,0.34023763,2927.8,2927.0,0.03416467]
[1766586753497,0.03419621,2927.8,2927.0,0.03416467]
[1766586753791,7.095878,2928.1,2927.0,3.45059767]
[1766586753992,0.03419621,2928.0,2927.0,3.45059767]
[1766586754200,4.2939882,2928.3,2927.0,3.45059767]
[1766586754201,3.352258,2928.1,2927.0,3.45059767]
[1766586754403,13.169823,2927.9,2926.9,0.9007]
[1766586754598,19.121524,2927.7,2926.9,0.9007]
[1766586754902,0.03419621,2927.6,2926.7,0.9007]
[1766586755081,4.931484,2927.6,2926.8,0.934867]
[1766586755280,0.03419621,2927.5,2926.8,0.934867]
[1766586755482,30.0,2928.0,2926.4,3.41707732]
[1766586755681,30.0,2928.0,2926.0,3.41756927]
[1766586755682,6.572258,2927.8,2926.6,0.9007]
[1766586755914,4.498062,2927.6,2926.7,0.93486817]
[1766586756105,0.03419621,2927.7,2926.7,0.93486817]
[1766586756306,0.879,2927.9,2926.7,0.93486817]
[1766586756477,0.03419621,2927.8,2926.7,0.93486817]
[1766586756676,0.03419621,2928.1,2926.7,0.93486817]
[1766586756884,0.03419621,2928.1,2926.8,1.8565]
[1766586756885,18.308487,2928.0,2926.8,1.8565]
[1766586757104,0.03419621,2927.9,2926.9,0.99766584]
[1766586757301,21.358754,2928.1,2926.9,0.99766584]
[1766586757490,16.233706,2927.9,2926.9,0.9635]
[1766586757692,24.273504,2928.0,2926.9,0.9635]
[1766586758009,8.78717,2927.8,2926.9,0.99766584]
[1766586758213,0.03419621,2927.7,2926.9,4.41423428]
[1766586758407,10.71717,2927.9,2926.9,4.41423428]
[1766586758579,0.03419621,2927.8,2926.9,0.9635]
[1766586758780,0.03419621,2928.0,2926.9,0.9635]
[1766586759006,9.78717,2927.8,2926.9,0.9635]
[1766586759181,0.03419621,2927.7,2926.9,0.99766584]
[1766586759512,8.192887,2927.7,2926.9,0.9635]
[1766586759710,10.405798,2927.8,2926.9,0.99766584]
[1766586759879,7.077495,2927.8,2926.9,0.99766584]
[1766586760080,0.34503801,2927.9,2926.9,4.41424988]
[1766586760081,0.7422533,2927.7,2926.9,4.41424988]
[1766586760276,0.03419621,2927.6,2926.9,0.03416584]
[1766586760480,30.0,2927.6,2926.4,0.9635]
[1766586760782,10.432509,2927.4,2926.5,0.03417051]
[1766586760999,19.271104,2927.2,2926.0,0.9635]
[1766586761288,0.2,2926.8,2925.4,1.8565]
[1766586761492,10.182946,2926.6,2925.5,0.99768219]
[1766586761738,0.03419621,2926.5,2925.7,0.9635]
[1766586761934,6.858922,2926.6,2925.8,0.03417868]
[1766586762240,0.72350803,2926.5,2925.3,3.41842944]
[1766586762426,0.03419621,2926.5,2925.4,0.03418335]
[1766586762629,0.03419621,2926.7,2925.5,3.41820501]
[1766586762944,12.719461,2926.6,2925.4,4.41596381]
[1766586763149,0.03419621,2926.5,2925.5,3.41820731]
[1766586763347,5.352935,2926.6,2925.6,0.99768102]
[1766586763644,0.66070933,2926.5,2925.6,0.99768102]
[1766586763848,30.0,2926.5,2925.6,0.9635]
[1766586764035,0.878,2926.7,2925.7,3.45216528]
[1766586764229,0.03419621,2926.6,2925.8,0.9635]
[1766586764430,13.831306,2927.0,2926.0,0.9635]
[1766586764632,1.42074643,2926.9,2926.0,0.9635]
[1766586764820,22.69033,2926.8,2926.0,0.9635]
[1766586765013,25.589371,2926.6,2925.7,0.92717985]
[1766586765232,0.03419621,2926.5,2925.7,0.92717985]
[1766586765440,30.0,2927.0,2925.7,0.99767985]
[1766586765652,0.878,2927.2,2925.7,0.99767985]
[1766586765653,30.0,2926.8,2925.7,0.9635]
[1766586765849,0.03419621,2926.7,2925.9,1.06227552]
[1766586766051,0.03419621,2926.8,2926.1,0.9635]
[1766586766216,4.983734,2927.3,2926.3,0.9635]
[1766586766414,0.03419621,2927.2,2926.4,0.9635]
[1766586766614,11.155128,2927.2,2926.4,0.9635]
[1766586766853,1.15312863,2927.1,2926.4,0.9635]
[1766586767052,0.03419621,2927.1,2926.4,0.9635]
[1766586767214,30.0,2927.2,2925.9,0.99767751]
[1766586767419,0.2,2927.4,2925.9,0.99767751]
[1766586767420,23.802887,2927.0,2925.9,0.99767751]
[1766586767652,0.03419621,2926.9,2925.9,0.99767751]
[1766586767854,0.03419621,2927.3,2926.0,1.06227552]
[1766586768020,0.03419621,2927.2,2926.5,0.9635]
[1766586768221,0.03419621,2927.5,2926.7,0.9635]
[1766586768555,20.853053,2927.4,2926.4,0.893]
[1766586768724,0.03419621,2927.3,2926.5,0.03417051]
[1766586768919,30.0,2927.5,2926.4,0.893]
[1766586769122,23.002072,2927.3,2926.4,0.03417167]
[1766586769327,3.03761583,2927.4,2926.4,0.99767167]
[1766586769328,3.00341962,2927.4,2926.4,0.99767167]
[1766586769531,23.670186,2927.6,2926.4,0.99767167]
[1766586769835,0.001,2927.7,2926.6,1.06227552]
[1766586770160,0.03519621,2927.7,2926.8,0.9635]
[1766586770452,0.03519621,2927.7,2927.0,0.9635]
[1766586770858,0.03519621,2927.7,2926.9,0.92716584]
[1766586770859,0.03519621,2927.7,2927.1,0.9976635]
[1766586771067,0.001,2927.7,2927.1,0.9976635]
[1766586771249,0.001,2927.7,2927.1,1.1966074]
[1766586771451,0.001,2928.1,2927.3,0.9635]
[1766586771634,0.001,2928.1,2927.5,0.9635]
[1766586771833,0.001,2928.1,2927.8,0.9635]
[1766586772043,0.001,2928.1,2927.8,1.8565]
[1766586772434,9.854801,2928.7,2927.9,0.9635]
[1766586772635,2.260027,2928.5,2927.9,0.99765417]
[1766586772831,0.03419621,2928.4,2927.9,0.99765417]
[1766586773045,15.262002,2928.8,2927.9,0.99765417]
[1766586773238,30.0,2928.6,2927.5,0.893]
[1766586773456,30.0,2928.4,2927.5,0.893]
[1766586773658,16.009089,2928.2,2927.5,0.893]
[1766586773958,0.04268979,2928.1,2927.5,0.893]
[1766586774165,0.04268834,2928.2,2927.5,0.893]
[1766586774375,0.04268979,2928.1,2927.5,0.893]
[1766586774575,30.0,2928.4,2927.5,0.893]
[1766586774897,20.406127,2928.2,2927.5,0.893]
[1766586775174,0.04268979,2928.1,2927.5,0.893]
[1766586775373,0.878,2928.0,2926.8,0.9635]
[1766586775671,16.391894,2927.8,2926.8,0.98054378]
[1766586775864,1.6861543,2927.7,2927.1,0.9635]
[1766586776172,0.04269563,2927.7,2927.1,0.9635]
[1766586776470,3.41530054,2928.0,2926.9,0.893]
[1766586776669,12.89068,2927.8,2926.9,0.91005137]
[1766586776870,7.855913,2927.6,2926.9,0.893]
[1766586777070,0.4157,2927.9,2926.9,0.893]
[1766586777071,0.04269854,2927.5,2926.9,0.893]
[1766586777276,3.371509,2927.7,2926.9,0.893]
[1766586777463,0.04269708,2927.6,2927.0,0.9635]
[1766586777775,0.04269271,2927.9,2927.2,0.9635]
[1766586777972,2.34524,2928.4,2927.3,0.9805467]
[1766586778173,13.599632,2928.2,2927.4,0.893]
[1766586778366,0.04268979,2928.1,2927.4,0.893]
[1766586778555,11.259595,2928.3,2927.4,0.893]
[1766586778757,2.567334,2928.1,2927.4,0.893]
[1766586778960,0.04269125,2928.0,2927.4,0.91004145]
[1766586779171,8.222904,2928.3,2927.3,1.8565]
[1766586779370,6.726366,2928.1,2927.3,1.8565]
[1766586779564,0.04269125,2928.0,2927.3,1.8565]
[1766586779878,3.41506727,2928.2,2927.3,1.8565]
[1766586780179,1.61168742,2928.1,2927.3,1.8565]
[1766586780508,29.253634,2928.0,2927.2,0.893]
[1766586780645,22.42397,2927.8,2927.1,0.893]
[1766586780842,0.04269563,2927.7,2926.8,0.9635]
[1766586781080,18.252078,2927.7,2926.8,0.9635]
[1766586781280,0.04269708,2927.6,2926.8,0.9635]
[1766586781470,15.481572,2927.7,2926.8,0.9635]
[1766586781774,1.55242662,2927.6,2927.0,0.9612]
[1766586781944,6.055268,2928.0,2927.2,0.9612]
[1766586782146,0.04269271,2927.9,2927.3,0.97824554]
[1766586782351,9.53071383,2928.3,2927.3,0.97824554]
[1766586782577,0.04268834,2928.2,2927.3,0.97824554]
[1766586783653,0.04268979,2928.1,2927.3,0.9612]
[1766586783877,18.05604,2928.3,2927.4,0.90904262]
[1766586784180,1.85256088,2928.2,2927.4,0.90904262]
[1766586784392,0.04268834,2928.2,2927.4,0.90904262]
[1766586785656,14.908978,2928.1,2927.2,0.892]
[1766586785882,0.45838834,2928.2,2927.2,0.892]
[1766586785883,4.186641,2927.9,2927.2,0.892]
[1766586786089,0.04269417,2927.8,2927.1,0.002]
[1766586786389,4.111743,2928.0,2927.2,0.892]
[1766586786688,0.04268979,2928.1,2927.1,3.41832212]
[1766586786689,0.45813599,2927.9,2927.1,0.002]
[1766586786892,0.4157,2927.8,2927.1,0.002]
[1766586787092,20.845175,2927.6,2926.5,1.8532]
[1766586787392,19.645059,2927.4,2926.5,0.9612]
[1766586787592,13.796959,2927.2,2926.5,0.9612]
[1766586787792,0.04270438,2927.1,2926.5,0.9612]
[1766586787969,3.41588385,2927.5,2926.5,0.9612]
[1766586788171,0.0427,2927.4,2926.7,0.9632]
[1766586788495,0.04270146,2927.3,2926.7,0.9632]
[1766586788675,0.04269854,2927.5,2926.7,0.9632]
[1766586788868,0.34585127,2927.4,2926.7,0.98026071]
[1766586789070,0.04270146,2927.3,2926.7,0.98026071]
[1766586789695,0.878,2927.7,2926.7,0.98026071]
[1766586789996,0.04269708,2927.6,2926.8,0.892]
[1766586790298,3.45847408,2927.6,2926.8,0.892]
[1766586790504,27.310887,2927.4,2926.8,0.892]
[1766586790689,0.04270146,2927.3,2926.7,0.9632]
[1766586790892,19.302982,2927.3,2926.7,0.9632]
[1766586791075,0.04270292,2927.2,2926.7,0.002]
[1766586791394,0.0427,2927.4,2926.7,0.002]
[1766586791561,0.42200244,2927.4,2926.9,0.9612]
[1766586791778,6.41,2927.8,2927.1,0.9612]
[1766586791979,3.41498554,2928.3,2927.3,0.9612]
[1766586792198,6.204251,2928.2,2927.3,4.37729582]
[1766586792405,3.61489178,2928.4,2927.3,0.9612]
[1766586792579,3.045454,2928.2,2927.4,0.97823912]
[1766586792915,3.41489178,2928.4,2927.4,0.97823912]
[1766586793417,6.026278,2928.2,2927.4,0.97823912]
[1766586793599,0.64958628,2928.1,2927.4,0.97823912]
[1766586793915,0.04268979,2928.1,2927.4,0.97823912]
[1766586794115,2.42431,2928.2,2927.4,0.97823912]
[1766586794311,0.04268979,2928.1,2927.4,0.97823912]
[1766586794524,21.718883,2928.0,2927.0,0.9632]
[1766586794820,0.04269271,2927.9,2927.1,0.90904904]
[1766586795020,4.373443,2928.2,2927.3,0.9612]
[1766586795220,3.052718,2928.0,2927.3,0.9612]
[1766586795420,0.04269271,2927.9,2927.3,0.9612]
[1766586795713,6.83002226,2928.3,2927.3,0.9612]
[1766586795714,30.878,2928.1,2927.3,0.83652328]
[1766586795917,21.175441,2927.8,2927.0,0.002]
[1766586796084,2.16023973,2927.7,2927.0,0.002]
[1766586796283,0.04269563,2927.7,2927.0,0.002]
[1766586797719,21.670581,2927.6,2927.0,0.002]
[1766586797883,24.878461,2927.3,2926.7,0.002]
[1766586798080,0.04270292,2927.2,2926.7,0.002]
[1766586798313,0.44035735,2927.1,2926.7,0.002]
[1766586798519,0.04270584,2927.0,2926.7,0.002]
[1766586798916,0.04270584,2927.0,2926.3,0.01706945]
[1766586799227,0.04270584,2927.0,2926.2,0.892]
[1766586799733,0.04270584,2927.0,2926.2,4.30940011]
[1766586799929,0.04270584,2927.0,2926.3,3.43435133]
[1766586800129,0.04270584,2927.0,2926.3,0.01707472]
[1766586800335,0.04270584,2927.0,2926.2,1.7610215]
[1766586800336,0.04270584,2927.0,2926.2,5.17841367]
[1766586800639,0.04270584,2927.0,2926.2,1.7610215]
[1766586801139,0.04270584,2927.0,2926.2,5.17839082]
[1766586801438,0.04270584,2927.0,2926.2,4.28639082]
[1766586801639,0.9447,2926.9,2926.0,0.002]
[1766586801841,0.04270876,2926.8,2926.0,0.002]
[1766586802142,7.078966,2926.7,2926.0,0.002]
[1766586802309,0.04271167,2926.6,2926.0,0.002]
[1766586802505,7.078966,2926.7,2926.1,0.002]
[1766586802704,30.9447,2926.5,2925.9,0.002]
[1766586802917,0.04271459,2926.4,2925.9,0.002]
[1766586803545,10.224804,2926.1,2925.5,0.002]
[1766586803728,0.04272043,2926.0,2925.5,0.002]
[1766586804333,3.46038656,2926.0,2925.5,0.002]
[1766586804641,19.540252,2925.6,2925.0,0.002]
[1766586804944,0.04272773,2925.5,2925.0,0.002]
[1766586805120,9.896892,2925.5,2925.0,0.002]
[1766586805437,0.04272919,2925.4,2925.0,0.002]
[1766586805743,7.367632,2925.5,2925.0,0.002]
[1766586805909,0.04272919,2925.4,2925.0,0.002]
[1766586806344,7.367632,2925.5,2925.0,0.002]
[1766586806639,0.04272919,2925.4,2925.0,0.002]
[1766586806949,7.367632,2925.5,2925.0,0.002]
[1766586807121,0.04272919,2925.4,2925.0,0.002]
[1766586807439,3.235968,2925.5,2925.0,0.002]
[1766586807639,0.37059862,2925.4,2925.0,0.002]
[1766586807840,0.04272919,2925.4,2925.0,0.002]
[1766586808040,3.035023,2925.5,2925.0,0.002]
[1766586808231,0.9447,2925.7,2925.0,0.002]
[1766586808232,0.04272919,2925.4,2925.0,0.002]
[1766586808541,3.035023,2925.5,2925.0,0.002]
[1766586808725,4.24201697,2926.1,2925.1,0.9612]
[1766586808931,11.675183,2925.9,2925.1,0.9612]
[1766586809108,0.04272335,2925.8,2925.1,1.8532]
[1766586809306,2.78785619,2926.0,2925.0,0.9612]
[1766586809307,10.866558,2926.0,2925.0,0.9612]
[1766586809538,0.04272189,2925.9,2925.0,0.9612]
[1766586809839,9.82742111,2926.2,2925.0,0.9612]
[1766586809840,6.41,2926.2,2925.0,0.9612]
[1766586810027,0.04271897,2926.1,2925.2,0.9612]
[1766586810428,0.04271897,2926.1,2925.3,6.8369056]
[1766586810627,0.04271897,2926.1,2925.4,1.8532]
[1766586810839,0.04271897,2926.1,2925.5,0.892]
[1766586811645,0.04271897,2926.1,2925.4,0.9612]
[1766586811853,0.6452719,2926.0,2925.4,0.892]
[1766586812024,0.04272189,2925.9,2925.4,0.892]
[1766586812552,4.43289902,2925.9,2925.2,0.892]
[1766586812755,0.9724,2925.8,2925.0,0.002]
[1766586812956,0.04272481,2925.7,2925.0,0.002]
[1766586813159,0.04272335,2925.8,2925.0,3.94354341]
[1766586813451,0.04272189,2925.9,2925.2,0.9147]
[1766586813755,10.375389,2926.0,2925.2,0.892]
[1766586813959,29.783912,2925.7,2925.0,0.002]
[1766586814158,23.270249,2925.5,2925.0,0.002]
[1766586814379,24.48475,2925.2,2924.7,0.002]
[1766586814666,23.053234,2924.9,2924.0,0.002]
[1766586814820,0.04273796,2924.8,2924.0,0.002]
[1766586815025,12.248953,2924.9,2924.0,0.002]
[1766586815227,0.04273796,2924.8,2924.0,0.9167]
[1766586815440,7.160941,2924.9,2924.1,0.86488785]
[1766586815676,0.04273796,2924.8,2924.0,0.002]
[1766586815829,0.04273796,2924.8,2923.8,0.002]
[1766586815830,0.9724,2924.4,2923.8,0.002]
[1766586816156,0.2,2925.2,2923.8,0.002]
[1766586816157,12.722002,2925.3,2923.9,0.9147]
[1766586816342,0.9761,2924.9,2923.3,0.9147]
[1766586816553,2.862983,2924.6,2923.4,1.84080674]
[1766586816938,2.862983,2924.6,2923.5,4.33515755]
[1766586817133,0.879,2925.0,2924.6,0.002]
[1766586817337,0.04269384,2924.9,2924.6,0.002]
[1766586817559,0.04269384,2924.9,2924.0,0.892]
[1766586817861,0.09877552,2924.6,2923.5,7.7351151]
[1766586818069,0.04269384,2924.5,2923.6,0.0342044]
[1766586818249,21.528445,2924.3,2923.5,0.9166]
[1766586818431,0.14146936,2924.2,2923.5,1.8086]
[1766586818629,0.14146936,2924.2,2923.6,0.0342044]
[1766586818852,0.9761,2923.8,2922.6,0.9166]
[1766586819161,2.09137715,2923.7,2922.7,0.03421493]
[1766586819369,2.09137715,2923.7,2923.2,0.9146]
[1766586819370,0.04269384,2923.7,2923.2,0.9146]
[1766586819530,0.04269384,2923.8,2923.2,0.94880908]
[1766586819859,0.04269384,2923.8,2923.2,0.9146]
[1766586820062,0.04269384,2923.9,2922.7,0.9146]
[1766586820226,1.07487552,2923.5,2922.6,0.002]
[1766586820433,3.15018139,2923.4,2922.6,0.002]
[1766586820648,0.09877552,2923.3,2922.6,0.002]
[1766586820959,0.04269384,2923.2,2922.6,0.002]
[1766586821156,0.04269384,2923.4,2922.6,0.002]
[1766586821331,8.783221,2923.3,2922.6,0.002]
[1766586821654,6.747221,2923.3,2922.6,0.002]
[1766586821857,2.824871,2923.2,2922.6,0.002]
[1766586822169,0.04269384,2923.1,2922.6,0.002]
[1766586822464,0.04269384,2923.4,2922.7,0.9146]
[1766586822674,0.9761,2923.4,2922.6,0.002]
[1766586822879,0.09877552,2923.3,2922.6,0.002]
[1766586823059,0.04269384,2923.2,2922.6,0.002]
[1766586823234,0.04269384,2923.3,2922.6,0.002]
[1766586823748,0.09877552,2923.7,2922.6,0.9166]
[1766586823948,3.89026484,2923.6,2922.7,1.12967493]
[1766586824153,0.09877552,2924.4,2922.7,1.12967493]
[1766586824357,0.09877552,2924.4,2922.8,0.892]
[1766586824358,26.753227,2924.1,2922.8,0.892]
[1766586824564,4.502771,2923.9,2922.9,1.84081259]
[1766586824762,4.502771,2923.9,2922.7,3.60230219]
[1766586824763,16.639096,2923.7,2922.7,3.60230219]
[1766586824940,12.618018,2923.5,2922.8,0.03421376]
[1766586825140,1.80848282,2923.6,2922.6,0.002]
[1766586825141,0.04269384,2923.4,2922.6,0.9282161]
[1766586825471,0.04269384,2923.4,2922.6,0.002]
[1766586825472,8.677098,2923.4,2922.6,0.002]
[1766586825670,0.04269384,2923.3,2922.6,0.002]
[1766586825979,27.259437,2922.7,2921.2,0.9146]
[1766586826138,10.159275,2922.0,2921.4,0.002]
[1766586826339,0.04278038,2921.9,2921.4,0.002]
[1766586826645,0.9761,2922.9,2921.6,0.9146]
[1766586826858,0.14154272,2922.8,2921.8,0.9146]
[1766586827061,0.14154272,2922.8,2921.5,10.26869757]
[1766586827062,1.11764272,2922.8,2921.6,0.9146]
[1766586827268,1.11764272,2922.8,2921.5,6.84579838]
[1766586827269,2.96585,2922.6,2921.7,0.00863999]
[1766586827591,0.14154711,2922.5,2921.7,0.9146]
[1766586827752,0.14154711,2922.5,2921.5,0.00864321]
[1766586827753,16.640798,2922.2,2921.5,0.00864321]
[1766586827953,0.04277745,2922.1,2921.5,0.00864321]
[1766586828193,0.09877552,2922.8,2921.6,0.9146]
[1766586828472,0.03413747,2922.7,2921.8,0.9146]
[1766586828677,0.03413747,2922.8,2921.9,1.8418243]
[1766586828838,0.03413747,2922.8,2922.0,3.60649591]
[1766586829038,0.03413747,2922.9,2922.0,3.60649591]
[1766586829237,0.09877552,2922.8,2922.0,0.21840556]
[1766586829436,3.75211,2922.5,2921.5,4.33749098]
[1766586829670,0.03413747,2922.4,2921.8,3.42247754]
[1766586829852,4.230818,2922.7,2922.0,0.9146]
[1766586830036,0.09877552,2923.0,2922.1,0.9146]
[1766586830238,0.09877552,2923.2,2922.2,0.9146]
[1766586830600,0.09877552,2923.2,2922.1,0.86866373]
[1766586830601,0.09877552,2922.9,2922.1,0.86866373]
[1766586830742,14.835331,2922.8,2922.0,0.92722313]
[1766586830945,0.9761,2923.0,2922.0,4.34951488]
[1766586831166,4.213521,2923.0,2922.1,0.9146]
[1766586831441,3.625168,2923.0,2922.2,0.94882079]
[1766586832044,19.119072,2922.8,2922.1,0.92722196]
[1766586832348,1.92178475,2922.8,2922.1,0.92722196]
[1766586832568,9.532097,2922.8,2922.1,0.92722196]
[1766586832762,5.81402,2923.0,2922.1,0.92722196]
[1766586832975,1.07487552,2923.1,2922.2,6.8441585]
[1766586833275,2.082639,2923.0,2922.3,0.94881962]
[1766586833490,26.41825752,2922.9,2922.0,0.002]
[1766586833785,15.543285,2922.6,2922.0,0.002]
[1766586834158,11.645246,2922.6,2922.0,0.002]
[1766586834388,10.869246,2922.6,2922.0,0.03622313]
[1766586834594,1.19441215,2922.6,2922.0,0.002]
[1766586834978,10.869246,2922.6,2922.0,0.002]
[1766586835172,8.433949,2922.7,2922.0,0.002]
[1766586835586,7.828181,2922.7,2922.0,0.002]
[1766586835791,14.62961,2922.9,2922.0,0.002]
[1766586835985,14.62961,2922.9,2922.0,0.9166]
[1766586836302,10.25606,2922.7,2922.0,0.9166]
[1766586836677,0.09877552,2922.9,2922.0,0.9166]
[1766586836994,7.111884,2923.0,2922.2,0.9146]
[1766586837398,10.53305405,2923.0,2922.2,0.9146]
[1766586837579,11.767524,2922.9,2922.0,0.002]
[1766586837779,21.153634,2922.7,2922.0,0.002]
[1766586837978,16.39225,2922.7,2922.0,0.002]
[1766586838175,2.05763948,2922.8,2922.0,0.002]
[1766586838376,1.07487552,2922.6,2922.0,0.002]
[1766586838580,1.07487552,2922.6,2921.4,0.9166]
[1766586838581,0.09877552,2922.2,2921.4,0.9166]
[1766586838781,4.634108,2922.1,2921.5,0.03422899]
[1766586839313,0.09877552,2922.0,2921.4,0.002]
[1766586839512,0.09877552,2922.2,2921.4,0.002]
[1766586839679,0.09877552,2922.0,2921.4,0.002]
[1766586840477,29.77402,2921.9,2921.4,0.002]
[1766586840684,30.09877552,2922.0,2921.4,0.002]
[1766586840886,0.09877552,2923.0,2921.5,0.893]
[1766586841188,6.48958952,2922.7,2921.4,0.002]
[1766586841382,16.53299,2922.0,2921.4,0.002]
[1766586841691,0.09877552,2921.9,2921.4,0.002]
[1766586842311,0.09877552,2921.8,2921.4,0.002]
[1766586842980,0.9186,2922.5,2921.5,3.42289537]
[1766586843183,0.09877552,2922.1,2921.9,0.9368]
[1766586843413,0.13303612,2922.0,2921.4,0.002]
[1766586843626,0.0342606,2922.0,2921.4,0.002]
[1766586843779,0.0342606,2922.3,2921.5,0.9868]
[1766586843983,0.0342606,2922.2,2921.6,0.03422782]
[1766586844216,0.0342606,2922.3,2921.5,0.9868]
[1766586844456,1.01737552,2922.1,2921.4,0.002]
[1766586844755,0.0342606,2922.0,2921.4,0.002]
[1766586844932,0.0342606,2921.9,2921.4,0.002]
[1766586845133,0.13303612,2922.2,2921.4,0.002]
[1766586845321,1.01737552,2922.0,2921.1,0.03423367]
[1766586845519,0.47821779,2921.9,2921.2,3.42324751]
[1766586845714,0.0342606,2921.9,2921.1,3.42331101]
[1766586846045,0.0342606,2921.9,2920.9,0.893]
[1766586846244,0.09877552,2921.8,2921.0,3.45768959]
[1766586846448,0.0342606,2921.7,2921.0,0.03423485]
[1766586846824,0.0342606,2921.7,2920.8,0.03623719]
[1766586847219,0.0342606,2921.7,2920.9,3.42351842]
[1766586847825,0.0342606,2921.7,2920.9,8.61752091]
[1766586848023,0.0342606,2921.9,2921.0,1.02103485]
[1766586848258,0.0342606,2921.8,2921.0,1.02103485]
[1766586848425,0.0342606,2922.1,2921.0,1.02103485]
[1766586848819,0.0342606,2922.3,2921.1,0.9868]
[1766586849051,0.0342606,2922.3,2921.0,6.25539209]
[1766586849052,0.001,2922.6,2921.3,0.9868]
[1766586849250,0.001,2922.6,2921.2,0.75845171]
[1766586849251,0.001,2922.6,2921.5,0.9868]
[1766586849453,0.001,2922.6,2921.7,0.9868]
[1766586849660,0.001,2922.6,2921.9,0.9868]
[1766586849861,0.001,2922.6,2922.1,0.9868]
[1766586850439,0.001,2922.6,2922.2,0.03422079]
[1766586850781,1.7986,2923.3,2922.2,1.02102079]
[1766586850962,8.64018482,2923.3,2922.2,1.02102079]
[1766586851167,0.9186,2923.2,2921.7,0.9868]
[1766586851458,0.9186,2923.0,2921.8,0.893]
[1766586851681,0.9186,2922.8,2921.2,1.71101921]
[1766586851880,0.001,2922.1,2921.3,0.03423133]
[1766586852231,0.001,2922.1,2921.5,3.42289017]
[1766586852735,0.001,2922.1,2921.7,3.42266389]
[1766586852940,0.77606512,2922.9,2921.8,1.02102547]
[1766586853269,0.77606512,2922.9,2920.5,0.09877552]
[1766586853270,0.1783,2920.1,2918.9,0.9868]
[1766586853568,0.81290134,2920.0,2919.0,0.9868]
[1766586853731,0.81290134,2920.0,2917.6,0.9868]
[1766586853732,0.09877552,2919.4,2917.6,0.9868]
[1766586853935,0.09877552,2918.6,2917.0,0.9868]
[1766586854174,0.09877552,2918.6,2916.6,6.85729958]
[1766586854175,0.09877552,2917.9,2916.6,3.42864979]
[1766586854373,0.09877552,2918.1,2917.0,1.8798]
[1766586854536,0.0803,2919.5,2917.1,1.10276746]
[1766586854734,0.0803,2919.5,2917.4,0.9868]
[1766586854735,0.04281701,2919.4,2917.4,0.9868]
[1766586854960,0.04281701,2919.4,2917.6,0.9868]
[1766586855164,0.04281701,2919.4,2917.3,0.09877552]
[1766586855165,0.0803,2919.3,2917.7,1.18637451]
[1766586855336,0.2,2918.9,2917.8,0.9101655]
[1766586855549,0.04282581,2918.8,2917.8,0.893]
[1766586856154,0.04282581,2918.8,2917.6,0.01716903]
[1766586856357,0.04282581,2918.8,2917.7,0.893]
[1766586856541,0.75227454,2918.8,2917.7,1.08098]
[1766586856736,0.75227454,2918.8,2917.8,0.01717138]
[1766586856952,0.04282581,2918.8,2917.9,0.9868]
[1766586857281,0.04281848,2919.3,2918.0,0.9868]
[1766586857483,0.04281848,2919.3,2918.0,4.43096772]
[1766586857645,0.0803,2919.7,2918.1,1.08557552]
[1766586857845,0.04281408,2919.6,2918.3,0.9868]
[1766586858064,0.04281408,2919.6,2918.4,1.1936468]
[1766586858241,0.0803,2919.2,2917.8,0.9868]
[1766586858439,0.0803,2919.0,2917.9,0.893]
[1766586858793,0.04282435,2918.9,2918.0,0.9868]
[1766586859087,0.12311701,2919.4,2918.1,0.91016492]
[1766586859293,0.04281848,2919.3,2918.2,0.9868]
[1766586859488,3.46817429,2919.5,2918.4,0.9868]
[1766586859695,6.89353303,2919.5,2918.4,0.9868]
[1766586859878,6.85071748,2919.5,2918.5,0.893]
[1766586860209,0.9186,2918.8,2916.6,3.42859856]
[1766586860354,0.9186,2918.6,2917.0,0.893]
[1766586860698,0.04283022,2918.5,2917.1,0.21504362]
[1766586861000,0.04283022,2918.5,2917.4,0.9868]
[1766586861155,0.04282141,2919.1,2917.6,0.9868]
[1766586861354,0.2,2919.2,2917.7,0.01716962]
[1766586861571,0.2,2919.0,2917.8,3.4272397]
[1766586861778,0.2,2919.0,2917.9,0.34444093]
[1766586861779,0.38257134,2919.0,2917.9,0.34444093]
[1766586861994,0.9186,2919.3,2918.0,1.8969655]
[1766586862306,0.09877552,2919.8,2918.3,0.9868]
[1766586862307,0.9186,2919.8,2918.3,0.9868]
[1766586862450,7.76770974,2920.1,2918.5,0.9868]
[1766586862656,0.9186,2919.9,2918.0,0.9868]
[1766586862853,0.9186,2919.7,2918.1,0.92726887]
[1766586863052,0.9186,2919.5,2917.9,0.34444093]
[1766586863270,0.9186,2919.1,2917.7,0.03427357]